Body Name,Document Number,Service,Type of Expenditure,Invoice Date,Supplier Name,Cost to the Council (Amount Exc VAT),Month
EREWASH BOROUGH COUNCIL,4144,Registration of Electors      ,Stationery                    ,24-Sep-2021,IDOX SOFTWARE LIMITED                   ,"2,144.22",Oct-21
EREWASH BOROUGH COUNCIL,4415,Household Waste Collection    ,Bin Liners                    ,30-Sep-2021,IMPERIAL POLYTHENE                      ,999.60,Oct-21
EREWASH BOROUGH COUNCIL,4431,Non-domestic Rates Collection ,Fees Costs and Expenses       ,15-Sep-2021,INFORM CPI LTD                          ,480.00,Oct-21
EREWASH BOROUGH COUNCIL,4346,Performance Management        ,Data Protection               ,07-Oct-2021,INFORMATION COMMISSIONER                ,"2,895.00",Oct-21
EREWASH BOROUGH COUNCIL,5029,Performance Management        ,Data Protection               ,07-Oct-2021,INFORMATION COMMISSIONER                ,"2,895.00",Oct-21
EREWASH BOROUGH COUNCIL,4030,Personnel and ICT             ,Vehicles                      ,21-Sep-2021,INSIGHT DIRECT (UK) LTD                 ,548.68,Oct-21
EREWASH BOROUGH COUNCIL,4643,Licensing Liquor Entment Other,Training                      ,08-Jan-2021,INSTITUTE OF LICENSING (EVENTS) LTD     ,400.00,Oct-21
EREWASH BOROUGH COUNCIL,3520,Car Parking                   ,Credit/Debit Card Charges     ,31-Aug-2021,INTERNATIONAL PARKING SYSTEMS UK LTD    ,"1,117.46",Oct-21
EREWASH BOROUGH COUNCIL,4419,Car Parking                   ,Contracted Services           ,30-Sep-2021,INTERNATIONAL PARKING SYSTEMS UK LTD    ,"1,195.24",Oct-21
EREWASH BOROUGH COUNCIL,3984,Revenues and Benefits         ,Courses and Seminars          ,16-Sep-2021,IRRV                                    ,438.75,Oct-21
EREWASH BOROUGH COUNCIL,4208,Property and Estates          ,Internal Fixtures and Fittings,28-Sep-2021,J TOMLINSON LIMITED                     ,"4,394.27",Oct-21
EREWASH BOROUGH COUNCIL,4208,Property and Estates          ,Internal Fixtures and Fittings,28-Sep-2021,J TOMLINSON LIMITED                     ,"5,000.00",Oct-21
EREWASH BOROUGH COUNCIL,4002,Basic Command Unit            ,Project Grants                ,16-Sep-2021,JNE SECURITY LIMITED                    ,940.00,Oct-21
EREWASH BOROUGH COUNCIL,4002,Basic Command Unit            ,Project Grants                ,16-Sep-2021,JNE SECURITY LIMITED                    ,735.00,Oct-21
EREWASH BOROUGH COUNCIL,4467,Homelessness                  ,Homelessness-Lease Properties ,05-Oct-2021,JP'S GROUNDS & MAINTENANCE SERVICES     ,740.00,Oct-21
EREWASH BOROUGH COUNCIL,5129,Ilkeston Charter Fair         ,Special Events                ,24-Oct-2021,KEITH STANLEY CARROLL                   ,720.00,Oct-21
EREWASH BOROUGH COUNCIL,4623,EBC Balance Sheet             ,Childcare Salary Sacrifice    ,05-Oct-2021,KIDDIVOUCHERS LTD                       ,333.00,Oct-21
EREWASH BOROUGH COUNCIL,3917,Front Line Support Services   ,Security                      ,31-Aug-2021,KINGS ARMOURED SECURITY SERVICES        ,706.60,Oct-21
EREWASH BOROUGH COUNCIL,4124,Car Parking                   ,Contracted Services           ,31-Aug-2021,KINGS ARMOURED SECURITY SERVICES        ,"1,552.95",Oct-21
EREWASH BOROUGH COUNCIL,4543,Front Line Support Services   ,Security                      ,30-Sep-2021,KINGS ARMOURED SECURITY SERVICES        ,739.20,Oct-21
EREWASH BOROUGH COUNCIL,4458,Car Parking                   ,Contracted Services           ,30-Sep-2021,KINGS ARMOURED SECURITY SERVICES        ,"1,380.40",Oct-21
EREWASH BOROUGH COUNCIL,4450,Commissioned Projects         ,Grants and Subscriptions      ,04-Oct-2021,KIRK HALLAM COMMUNITY HALL ASSOCIATION. ,312.00,Oct-21
EREWASH BOROUGH COUNCIL,3919,Reprographics                 ,Equipment Leasing Charge      ,10-Sep-2021,KONICA MINOLTA BUSINESS SOLUTIONS (UK) L,289.56,Oct-21
EREWASH BOROUGH COUNCIL,3918,Reprographics                 ,Equipment Leasing Charge      ,09-Sep-2021,KONICA MINOLTA BUSINESS SOLUTIONS (UK) L,"1,014.93",Oct-21
EREWASH BOROUGH COUNCIL,4434,Green Space                   ,Materials/Consumables         ,27-Sep-2021,KRM BUILDING SUPPLIES LTD               ,335.01,Oct-21
EREWASH BOROUGH COUNCIL,4172,ICT Support Services          ,Equipment Leasing Charge      ,21-Sep-2021,KYOCERA DOCUMENT SOLUTIONS (UK) LTD     ,"2,634.42",Oct-21
EREWASH BOROUGH COUNCIL,3885,Household Waste Collection    ,Agency Staff                  ,16-Sep-2021,QUALITY SERVICE RECRUITMENT LTD         ,636.25,Oct-21
EREWASH BOROUGH COUNCIL,3885,Kerbside Recycling Collection ,Agency Staff                  ,16-Sep-2021,QUALITY SERVICE RECRUITMENT LTD         ,424.17,Oct-21
EREWASH BOROUGH COUNCIL,4304,Kerbside Recycling Collection ,Agency Staff                  ,30-Sep-2021,QUALITY SERVICE RECRUITMENT LTD         ,386.91,Oct-21
EREWASH BOROUGH COUNCIL,4304,Household Waste Collection    ,Agency Staff                  ,30-Sep-2021,QUALITY SERVICE RECRUITMENT LTD         ,0.00,Oct-21
EREWASH BOROUGH COUNCIL,4304,Kerbside Recycling Collection ,Agency Staff                  ,30-Sep-2021,QUALITY SERVICE RECRUITMENT LTD         ,257.94,Oct-21
EREWASH BOROUGH COUNCIL,3659,Household Waste Collection    ,Agency Staff                  ,09-Sep-2021,QUALITY SERVICE RECRUITMENT LTD         ,700.74,Oct-21
EREWASH BOROUGH COUNCIL,3659,Kerbside Recycling Collection ,Agency Staff                  ,09-Sep-2021,QUALITY SERVICE RECRUITMENT LTD         ,467.16,Oct-21
EREWASH BOROUGH COUNCIL,4112,Household Waste Collection    ,Agency Staff                  ,23-Sep-2021,QUALITY SERVICE RECRUITMENT LTD         ,636.25,Oct-21
EREWASH BOROUGH COUNCIL,4112,Kerbside Recycling Collection ,Agency Staff                  ,23-Sep-2021,QUALITY SERVICE RECRUITMENT LTD         ,0.00,Oct-21
EREWASH BOROUGH COUNCIL,4112,Household Waste Collection    ,Agency Staff                  ,23-Sep-2021,QUALITY SERVICE RECRUITMENT LTD         ,424.17,Oct-21
EREWASH BOROUGH COUNCIL,3371,Transport Trading Account     ,Agency Staff                  ,24-May-2021,QUESTECH RECRUITMENT LTD                ,906.50,Oct-21
EREWASH BOROUGH COUNCIL,3578,Building Control Adv & Inform ,Contracted Services           ,01-Sep-2021,RANSOMWOOD ESTATES UK LIMITED           ,531.67,Oct-21
EREWASH BOROUGH COUNCIL,4427,Building Control Adv & Inform ,Contracted Services           ,01-Oct-2021,RANSOMWOOD ESTATES UK LIMITED           ,531.67,Oct-21
EREWASH BOROUGH COUNCIL,4000,Building Control - Fee Earning,Agency Staff                  ,10-Sep-2021,REED SPECIALIST RECRUITMENT LTD         ,650.46,Oct-21
EREWASH BOROUGH COUNCIL,3916,Building Control - Fee Earning,Agency Staff                  ,03-Sep-2021,REED SPECIALIST RECRUITMENT LTD         ,650.46,Oct-21
EREWASH BOROUGH COUNCIL,4428,Building Control - Fee Earning,Agency Staff                  ,24-Sep-2021,REED SPECIALIST RECRUITMENT LTD         ,650.46,Oct-21
EREWASH BOROUGH COUNCIL,4676,Building Control - Fee Earning,Agency Staff                  ,01-Oct-2021,REED SPECIALIST RECRUITMENT LTD         ,650.46,Oct-21
EREWASH BOROUGH COUNCIL,2999,Green Space                   ,Materials/Consumables         ,11-Aug-2021,RENTOKIL INITIAL SERVICES LIMITED       ,1.46,Oct-21
EREWASH BOROUGH COUNCIL,2999,Erewash Museum                ,Sanitary Services             ,11-Aug-2021,RENTOKIL INITIAL SERVICES LIMITED       ,11.97,Oct-21
EREWASH BOROUGH COUNCIL,2999,Civic Accommodation Ilkeston  ,Sanitary Services             ,11-Aug-2021,RENTOKIL INITIAL SERVICES LIMITED       ,48.12,Oct-21
EREWASH BOROUGH COUNCIL,2999,Long Eaton Market             ,Sanitary Services             ,11-Aug-2021,RENTOKIL INITIAL SERVICES LIMITED       ,1.46,Oct-21
EREWASH BOROUGH COUNCIL,2999,Civic Accommodation Long Eaton,Sanitary Services             ,11-Aug-2021,RENTOKIL INITIAL SERVICES LIMITED       ,63.70,Oct-21
EREWASH BOROUGH COUNCIL,2999,Merlin Way Depot              ,Sanitary Services             ,11-Aug-2021,RENTOKIL INITIAL SERVICES LIMITED       ,58.98,Oct-21
EREWASH BOROUGH COUNCIL,2999,Public Conveniences           ,Sanitary Services             ,11-Aug-2021,RENTOKIL INITIAL SERVICES LIMITED       ,143.86,Oct-21
EREWASH BOROUGH COUNCIL,3995,Public Conveniences           ,Sanitary Services             ,08-Sep-2021,RENTOKIL INITIAL SERVICES LIMITED       ,142.40,Oct-21
EREWASH BOROUGH COUNCIL,3995,Property and Estates          ,Reactive Maintenance          ,08-Sep-2021,RENTOKIL INITIAL SERVICES LIMITED       ,1.46,Oct-21
EREWASH BOROUGH COUNCIL,3995,Erewash Museum                ,Sanitary Services             ,08-Sep-2021,RENTOKIL INITIAL SERVICES LIMITED       ,11.97,Oct-21
EREWASH BOROUGH COUNCIL,3995,Civic Accommodation Ilkeston  ,Sanitary Services             ,08-Sep-2021,RENTOKIL INITIAL SERVICES LIMITED       ,48.12,Oct-21
EREWASH BOROUGH COUNCIL,3995,Long Eaton Market             ,Sanitary Services             ,08-Sep-2021,RENTOKIL INITIAL SERVICES LIMITED       ,1.46,Oct-21
EREWASH BOROUGH COUNCIL,3995,Shopmobility - Long Eaton     ,Sanitary Services             ,08-Sep-2021,RENTOKIL INITIAL SERVICES LIMITED       ,1.46,Oct-21
EREWASH BOROUGH COUNCIL,3995,Civic Accommodation Long Eaton,Sanitary Services             ,08-Sep-2021,RENTOKIL INITIAL SERVICES LIMITED       ,72.48,Oct-21
EREWASH BOROUGH COUNCIL,3995,Merlin Way Depot              ,Sanitary Services             ,08-Sep-2021,RENTOKIL INITIAL SERVICES LIMITED       ,58.98,Oct-21
EREWASH BOROUGH COUNCIL,4640,Green Space                   ,Materials/Consumables         ,26-Sep-2021,RISLEY CROPS CONSULTANTS LTD            ,300.00,Oct-21
EREWASH BOROUGH COUNCIL,4641,Green Space                   ,Materials/Consumables         ,26-Sep-2021,RISLEY CROPS CONSULTANTS LTD            ,300.00,Oct-21
EREWASH BOROUGH COUNCIL,3796,Revenues and Benefits         ,Postages                      ,06-Sep-2021,ROYAL MAIL GROUP LTD.                   ,341.67,Oct-21
EREWASH BOROUGH COUNCIL,3980,Registration of Electors      ,Postages                      ,03-Sep-2021,ROYAL MAIL GROUP LTD.                   ,860.60,Oct-21
EREWASH BOROUGH COUNCIL,3795,Communications                ,General Publicity and Promotio,01-Sep-2021,ROYAL MAIL GROUP LTD.                   ,"5,058.02",Oct-21
EREWASH BOROUGH COUNCIL,3803,Revenues and Benefits         ,Postages                      ,08-Sep-2021,ROYAL MAIL GROUP LTD.                   ,"1,439.44",Oct-21
EREWASH BOROUGH COUNCIL,4034,Revenues and Benefits         ,Postages                      ,22-Sep-2021,ROYAL MAIL GROUP LTD.                   ,"1,125.52",Oct-21
EREWASH BOROUGH COUNCIL,4552,Household Waste Collection    ,Repairs and Maintenance       ,04-Oct-2021,SAFETY SIGNS & NOTICES                  ,455.00,Oct-21
EREWASH BOROUGH COUNCIL,3577,Street Scene                  ,Repairs and Maintenance       ,06-Sep-2021,SCARAB SWEEPERS LTD                     ,748.09,Oct-21
EREWASH BOROUGH COUNCIL,3577,Street Scene                  ,Repairs and Maintenance       ,06-Sep-2021,SCARAB SWEEPERS LTD                     ,400.00,Oct-21
EREWASH BOROUGH COUNCIL,4319,Registration of Electors      ,Stationery                    ,30-Sep-2021,SCI PRINT LTD                           ,"2,011.75",Oct-21
EREWASH BOROUGH COUNCIL,3518,Green Space                   ,Metered Water                 ,01-Sep-2021,SCOTTISH WATER BUSINESS STREAM LIMITED  ,535.78,Oct-21
EREWASH BOROUGH COUNCIL,3518,Public Conveniences           ,Metered Water                 ,01-Sep-2021,SCOTTISH WATER BUSINESS STREAM LIMITED  ,921.61,Oct-21
EREWASH BOROUGH COUNCIL,3518,Merlin Way Depot              ,Metered Water                 ,01-Sep-2021,SCOTTISH WATER BUSINESS STREAM LIMITED  ,823.66,Oct-21
EREWASH BOROUGH COUNCIL,3518,Civic Accommodation Ilkeston  ,Metered Water                 ,01-Sep-2021,SCOTTISH WATER BUSINESS STREAM LIMITED  ,391.08,Oct-21
EREWASH BOROUGH COUNCIL,4967,Green Space                   ,Metered Water                 ,01-Oct-2021,SCOTTISH WATER BUSINESS STREAM LIMITED  ,526.22,Oct-21
EREWASH BOROUGH COUNCIL,4967,Public Conveniences           ,Metered Water                 ,01-Oct-2021,SCOTTISH WATER BUSINESS STREAM LIMITED  ,921.61,Oct-21
EREWASH BOROUGH COUNCIL,4967,Merlin Way Depot              ,Metered Water                 ,01-Oct-2021,SCOTTISH WATER BUSINESS STREAM LIMITED  ,823.66,Oct-21
EREWASH BOROUGH COUNCIL,4967,Civic Accommodation Ilkeston  ,Metered Water                 ,01-Oct-2021,SCOTTISH WATER BUSINESS STREAM LIMITED  ,385.86,Oct-21
EREWASH BOROUGH COUNCIL,3408,Toll Bar House                ,Reactive Maintenance          ,31-Aug-2021,SIGNS DIRECT LTD                        ,664.09,Oct-21
EREWASH BOROUGH COUNCIL,4844,Front Line Support Services   ,Uniforms                      ,31-Aug-2021,SIMON JERSEY LIMITED                    ,955.71,Oct-21
EREWASH BOROUGH COUNCIL,4183,Basic Command Unit            ,Project Grants                ,20-Sep-2021,SOLON SECURITY LTD                      ,332.50,Oct-21
EREWASH BOROUGH COUNCIL,4454,Basic Command Unit            ,Project Grants                ,05-Oct-2021,SOUTH DERBYSHIRE CVS.                   ,"4,000.00",Oct-21
EREWASH BOROUGH COUNCIL,4203,Civic Duties Hospitality      ,Drink Supplies                ,28-Sep-2021,SPURCROFT CIVIC                         ,299.00,Oct-21
EREWASH BOROUGH COUNCIL,4122,Erewash Museum                ,Goods for Resale              ,21-May-2021,STAR EDITIONS LTD                       ,459.22,Oct-21
EREWASH BOROUGH COUNCIL,4199,Community Safety              ,Contracted Services           ,01-Sep-2021,STEELCRAFT FABRICATIONS                 ,"1,000.00",Oct-21
EREWASH BOROUGH COUNCIL,3989,Green Space                   ,Materials/Consumables         ,10-Sep-2021,STEELCRAFT FABRICATIONS                 ,"1,300.00",Oct-21
EREWASH BOROUGH COUNCIL,3932,Household Waste Collection    ,Repairs and Maintenance       ,15-Sep-2021,STEELCRAFT FABRICATIONS                 ,950.00,Oct-21
EREWASH BOROUGH COUNCIL,4104,Civic Accommodation Long Eaton,Planned Preventative Maintenan,22-Sep-2021,STEELCRAFT FABRICATIONS                 ,"1,140.00",Oct-21
EREWASH BOROUGH COUNCIL,3382,Corporate Health and Safety   ,Water Testing (Legionella)    ,31-Aug-2021,STERILIZING SERVICES LTD                ,"1,400.80",Oct-21
EREWASH BOROUGH COUNCIL,4196,Corporate Health and Safety   ,Water Testing (Legionella)    ,28-Sep-2021,STERILIZING SERVICES LTD                ,671.80,Oct-21
EREWASH BOROUGH COUNCIL,4406,Green Space                   ,Materials/Consumables         ,29-Sep-2021,STREETMASTER (SOUTH WALES) LTD          ,"1,512.00",Oct-21
EREWASH BOROUGH COUNCIL,4404,CCTV - Ilkeston and Long Eaton,Contracted Services           ,04-Oct-2021,SYNECTICS SECURITY LIMITED              ,"7,920.50",Oct-21
EREWASH BOROUGH COUNCIL,3588,Kerbside Recycling Collection ,Repairs and Maintenance       ,01-Sep-2021,DENNIS EAGLE LTD                        ,402.89,Oct-21
EREWASH BOROUGH COUNCIL,3588,Kerbside Recycling Collection ,Repairs and Maintenance       ,01-Sep-2021,DENNIS EAGLE LTD                        ,273.19,Oct-21
EREWASH BOROUGH COUNCIL,3952,Household Waste Collection    ,Repairs and Maintenance       ,13-Sep-2021,DENNIS EAGLE LTD                        ,269.75,Oct-21
EREWASH BOROUGH COUNCIL,4692,Kerbside Recycling Collection ,Repairs and Maintenance       ,22-Sep-2021,DENNIS EAGLE LTD                        ,389.22,Oct-21
EREWASH BOROUGH COUNCIL,4572,Kerbside Recycling Collection ,Repairs and Maintenance       ,23-Sep-2021,DENNIS EAGLE LTD                        ,460.23,Oct-21
EREWASH BOROUGH COUNCIL,3950,Household Waste Collection    ,Repairs and Maintenance       ,14-Sep-2021,DENNIS EAGLE LTD                        ,303.70,Oct-21
EREWASH BOROUGH COUNCIL,4573,Kerbside Recycling Collection ,Repairs and Maintenance       ,28-Sep-2021,DENNIS EAGLE LTD                        ,269.75,Oct-21
EREWASH BOROUGH COUNCIL,4169,EBC Balance Sheet             ,Payroll Coll Acc Credit Union ,27-Sep-2021,DERBYSHIRE COMMUNITY BANK               ,330.00,Oct-21
EREWASH BOROUGH COUNCIL,5084,EBC Balance Sheet             ,Payroll Coll Acc Credit Union ,25-Oct-2021,DERBYSHIRE COMMUNITY BANK               ,330.00,Oct-21
EREWASH BOROUGH COUNCIL,4171,EBC Balance Sheet             ,Payroll Coll Acc Superanuation,27-Sep-2021,DERBYSHIRE COUNTY COUNCIL...            ,292.21,Oct-21
EREWASH BOROUGH COUNCIL,3530,Car Parking                   ,Civil Parking Enforcement     ,05-Aug-2021,DERBYSHIRE COUNTY COUNCIL...            ,"31,340.12",Oct-21
EREWASH BOROUGH COUNCIL,4883,Contaminated Land             ,Site Investigations           ,05-Oct-2021,DERBYSHIRE COUNTY COUNCIL...            ,569.70,Oct-21
EREWASH BOROUGH COUNCIL,4649,EBC Balance Sheet             ,Payroll Coll Acc Superanuation,13-Oct-2021,DERBYSHIRE COUNTY COUNCIL...            ,"119,365.99",Oct-21
EREWASH BOROUGH COUNCIL,4649,EBC Balance Sheet             ,Payroll Coll Acc Superanuation,13-Oct-2021,DERBYSHIRE COUNTY COUNCIL...            ,"83,250.00",Oct-21
EREWASH BOROUGH COUNCIL,4649,EBC Balance Sheet             ,Payroll Coll Acc - Added Years,13-Oct-2021,DERBYSHIRE COUNTY COUNCIL...            ,253.84,Oct-21
EREWASH BOROUGH COUNCIL,4568,Environmental & Housing Serv  ,Disabled Facilities Grant     ,04-Aug-2021,DERBYSHIRE COUNTY COUNCIL...            ,"5,596.00",Oct-21
EREWASH BOROUGH COUNCIL,4469,Local Land Charges            ,County Council Search Charges ,05-Oct-2021,DERBYSHIRE COUNTY COUNCIL...            ,"4,711.01",Oct-21
EREWASH BOROUGH COUNCIL,4565,Environmental & Housing Serv  ,Disabled Facilities Grant     ,14-Jun-2021,DERBYSHIRE COUNTY COUNCIL...            ,"5,994.10",Oct-21
EREWASH BOROUGH COUNCIL,4566,Environmental & Housing Serv  ,Disabled Facilities Grant     ,18-May-2021,DERBYSHIRE COUNTY COUNCIL...            ,"6,158.40",Oct-21
EREWASH BOROUGH COUNCIL,4567,Environmental & Housing Serv  ,Disabled Facilities Grant     ,07-Sep-2021,DERBYSHIRE COUNTY COUNCIL...            ,"7,393.30",Oct-21
EREWASH BOROUGH COUNCIL,4570,Environmental & Housing Serv  ,Disabled Facilities Grant     ,07-Sep-2021,DERBYSHIRE COUNTY COUNCIL...            ,"9,451.82",Oct-21
EREWASH BOROUGH COUNCIL,4571,Environmental & Housing Serv  ,Disabled Facilities Grant     ,03-Sep-2021,DERBYSHIRE COUNTY COUNCIL...            ,"12,262.44",Oct-21
EREWASH BOROUGH COUNCIL,4569,Environmental & Housing Serv  ,Disabled Facilities Grant     ,02-Aug-2021,DERBYSHIRE COUNTY COUNCIL...            ,"25,198.32",Oct-21
EREWASH BOROUGH COUNCIL,4535,Statement of Accounts         ,Year End Pension Valuation Fee,21-May-2021,DERBYSHIRE COUNTY COUNCIL...            ,"1,200.00",Oct-21
EREWASH BOROUGH COUNCIL,5093,Local Land Charges            ,County Council Search Charges ,25-Oct-2021,DERBYSHIRE COUNTY COUNCIL...            ,"4,126.58",Oct-21
EREWASH BOROUGH COUNCIL,5148,Environmental & Housing Serv  ,Disabled Facilities Grant     ,18-Aug-2021,DERBYSHIRE COUNTY COUNCIL...            ,"5,370.00",Oct-21
EREWASH BOROUGH COUNCIL,4653,Green Space                   ,Materials/Consumables         ,07-Oct-2021,DIAMOND DRIVER TRAINING                 ,675.00,Oct-21
EREWASH BOROUGH COUNCIL,5116,Personnel                     ,Legal Expenses                ,15-Oct-2021,DKD ASSOCIATES                          ,"3,019.05",Oct-21
EREWASH BOROUGH COUNCIL,4627,Development Control           ,Consultants Fees              ,30-Sep-2021,DLP PLANNING LIMITED                    ,"8,369.59",Oct-21
EREWASH BOROUGH COUNCIL,4311,Car Parking                   ,Reactive Maintenance          ,28-Sep-2021,E.ON UK ENERGY SERVICES                 ,790.50,Oct-21
EREWASH BOROUGH COUNCIL,4310,Pedestrian Zones - Ilk and LE ,Reactive Maintenance          ,28-Sep-2021,E.ON UK ENERGY SERVICES                 ,"1,345.00",Oct-21
EREWASH BOROUGH COUNCIL,4861,Homelessness                  ,Homelessness-Lease Properties ,01-Sep-2021,EMH HOMES                               ,967.62,Oct-21
EREWASH BOROUGH COUNCIL,4863,Homelessness                  ,Homelessness-Lease Properties ,01-Sep-2021,EMH HOMES                               ,"1,059.74",Oct-21
EREWASH BOROUGH COUNCIL,4859,Homelessness                  ,Homelessness-Lease Properties ,01-Sep-2021,EMH HOMES                               ,"1,161.01",Oct-21
EREWASH BOROUGH COUNCIL,4860,Homelessness                  ,Homelessness-Lease Properties ,24-Aug-2021,EMH HOMES                               ,"1,935.24",Oct-21
EREWASH BOROUGH COUNCIL,4862,Homelessness                  ,Homelessness-Lease Properties ,24-Aug-2021,EMH HOMES                               ,"2,119.50",Oct-21
EREWASH BOROUGH COUNCIL,4858,Homelessness                  ,Homelessness-Lease Properties ,24-Aug-2021,EMH HOMES                               ,"2,322.00",Oct-21
EREWASH BOROUGH COUNCIL,3411,Green Space                   ,Materials/Consumables         ,31-Aug-2021,ENTERPRISE FLEX E RENT                  ,318.12,Oct-21
EREWASH BOROUGH COUNCIL,4848,EBC Balance Sheet             ,Payroll Coll Acc Labour Party ,19-Oct-2021,EREWASH LABOUR GROUP                    ,512.92,Oct-21
EREWASH BOROUGH COUNCIL,4536,Neighbourhood Wardens         ,Materials/Consumables         ,01-Oct-2021,EREWASH PARTNERSHIP LTD                 ,300.00,Oct-21
EREWASH BOROUGH COUNCIL,4536,Dog Control                   ,Materials/Consumables         ,01-Oct-2021,EREWASH PARTNERSHIP LTD                 ,111.84,Oct-21
EREWASH BOROUGH COUNCIL,4357,Green Space                   ,Contracted Services           ,01-Oct-2021,T H HEATH  CONTRACTS  LTD               ,"5,590.00",Oct-21
EREWASH BOROUGH COUNCIL,3797,Property and Estates          ,Alarms Reactive Maintenance   ,13-Sep-2021,TECSERV UK                              ,336.00,Oct-21
EREWASH BOROUGH COUNCIL,4893,Green Space                   ,Materials/Consumables         ,12-Aug-2021,TELESHORE GROUP OF COMPANIES            ,871.41,Oct-21
EREWASH BOROUGH COUNCIL,4892,Green Space                   ,Materials/Consumables         ,05-Aug-2021,TELESHORE GROUP OF COMPANIES            ,478.00,Oct-21
EREWASH BOROUGH COUNCIL,3786,Revenues and Benefits         ,Postages                      ,31-Aug-2021,TELSOLUTIONS LTD                        ,640.00,Oct-21
EREWASH BOROUGH COUNCIL,3963,EBC Balance Sheet             ,Fuel Store                    ,09-Sep-2021,TENNANTS DISTRIBUTION LTD               ,260.00,Oct-21
EREWASH BOROUGH COUNCIL,3586,Kerbside Recycling Collection ,Repairs and Maintenance       ,06-Sep-2021,TERBERG MATEC UK                        ,285.12,Oct-21
EREWASH BOROUGH COUNCIL,3418,Kerbside Recycling Collection ,Repairs and Maintenance       ,31-Aug-2021,TERBERG MATEC UK                        ,285.12,Oct-21
EREWASH BOROUGH COUNCIL,3589,Kerbside Recycling Collection ,Repairs and Maintenance       ,06-Sep-2021,TERBERG MATEC UK                        ,"1,018.63",Oct-21
EREWASH BOROUGH COUNCIL,3589,Kerbside Recycling Collection ,Repairs and Maintenance       ,06-Sep-2021,TERBERG MATEC UK                        ,308.88,Oct-21
EREWASH BOROUGH COUNCIL,3669,Training - Personnel Only     ,Courses and Seminars          ,02-Sep-2021,THE FIRE SERVICE COLLEGE LTD            ,950.00,Oct-21
EREWASH BOROUGH COUNCIL,3669,Corporate Health and Safety   ,Fire Maintenance              ,02-Sep-2021,THE FIRE SERVICE COLLEGE LTD            ,320.00,Oct-21
EREWASH BOROUGH COUNCIL,5794,Green Space                   ,Fuel                          ,31-Oct-2021,THE RIGHT FUELCARD COMPANY LTD          ,931.31,Oct-21
EREWASH BOROUGH COUNCIL,3768,Household Waste Collection    ,Agency Staff                  ,08-Sep-2021,THORN BAKER LIMITED                     ,"2,123.10",Oct-21
EREWASH BOROUGH COUNCIL,3768,Kerbside Recycling Collection ,Agency Staff                  ,08-Sep-2021,THORN BAKER LIMITED                     ,"1,415.40",Oct-21
EREWASH BOROUGH COUNCIL,3356,Household Waste Collection    ,Agency Staff                  ,25-Aug-2021,THORN BAKER LIMITED                     ,"2,189.23",Oct-21
EREWASH BOROUGH COUNCIL,3554,Household Waste Collection    ,Agency Staff                  ,01-Sep-2021,THORN BAKER LIMITED                     ,"2,314.24",Oct-21
EREWASH BOROUGH COUNCIL,2953,Household Waste Collection    ,Agency Staff                  ,11-Aug-2021,THORN BAKER LIMITED                     ,"3,315.10",Oct-21
EREWASH BOROUGH COUNCIL,2953,Kerbside Recycling Collection ,Agency Staff                  ,11-Aug-2021,THORN BAKER LIMITED                     ,0.00,Oct-21
EREWASH BOROUGH COUNCIL,3102,Household Waste Collection    ,Agency Staff                  ,18-Aug-2021,THORN BAKER LIMITED                     ,"3,556.75",Oct-21
EREWASH BOROUGH COUNCIL,3102,Kerbside Recycling Collection ,Agency Staff                  ,18-Aug-2021,THORN BAKER LIMITED                     ,0.00,Oct-21
EREWASH BOROUGH COUNCIL,4702,Trees Hedges Local Nature Res ,Contracted Services           ,03-Jun-2021,TOM RICHARDS TREE SERVICES              ,"3,000.00",Oct-21
EREWASH BOROUGH COUNCIL,4031,Civic Accommodation Ilkeston  ,Gas                           ,09-Sep-2021,TOTAL GAS & POWER LTD                   ,318.58,Oct-21
EREWASH BOROUGH COUNCIL,4031,Green Space                   ,Gas                           ,09-Sep-2021,TOTAL GAS & POWER LTD                   ,264.23,Oct-21
EREWASH BOROUGH COUNCIL,4106,Toll Bar House                ,Electricity                   ,20-Sep-2021,TOTAL GAS & POWER LTD                   ,471.02,Oct-21
EREWASH BOROUGH COUNCIL,4106,Green Space                   ,Electricity                   ,20-Sep-2021,TOTAL GAS & POWER LTD                   ,"1,025.92",Oct-21
EREWASH BOROUGH COUNCIL,4106,CCTV - Ilkeston and Long Eaton,Electricity                   ,20-Sep-2021,TOTAL GAS & POWER LTD                   ,305.12,Oct-21
EREWASH BOROUGH COUNCIL,4106,Ilkeston Market               ,Electricity                   ,20-Sep-2021,TOTAL GAS & POWER LTD                   ,278.81,Oct-21
EREWASH BOROUGH COUNCIL,4106,Car Parking                   ,Electricity                   ,20-Sep-2021,TOTAL GAS & POWER LTD                   ,586.48,Oct-21
EREWASH BOROUGH COUNCIL,4106,Green Space                   ,Electricity                   ,20-Sep-2021,TOTAL GAS & POWER LTD                   ,517.75,Oct-21
EREWASH BOROUGH COUNCIL,4106,Public Conveniences           ,Electricity                   ,20-Sep-2021,TOTAL GAS & POWER LTD                   ,526.00,Oct-21
EREWASH BOROUGH COUNCIL,4105,Merlin Way Depot              ,Electricity                   ,20-Sep-2021,TOTAL GAS & POWER LTD                   ,"1,186.85",Oct-21
EREWASH BOROUGH COUNCIL,4105,Civic Accommodation Long Eaton,Electricity                   ,20-Sep-2021,TOTAL GAS & POWER LTD                   ,"1,276.69",Oct-21
EREWASH BOROUGH COUNCIL,4105,Civic Accommodation Ilkeston  ,Electricity                   ,20-Sep-2021,TOTAL GAS & POWER LTD                   ,"1,147.77",Oct-21
EREWASH BOROUGH COUNCIL,4105,Sandiacre Friesland Sports Ctr,Electricity                   ,20-Sep-2021,TOTAL GAS & POWER LTD                   ,256.04,Oct-21
EREWASH BOROUGH COUNCIL,4105,Green Space                   ,Electricity                   ,20-Sep-2021,TOTAL GAS & POWER LTD                   ,852.66,Oct-21
EREWASH BOROUGH COUNCIL,4382,Household Waste Collection    ,Agency Staff                  ,01-Oct-2021,TOTAL TRANSPORT COMPLIANCE              ,"1,750.00",Oct-21
EREWASH BOROUGH COUNCIL,4794,Household Waste Collection    ,Agency Staff                  ,15-Oct-2021,TOTAL TRANSPORT COMPLIANCE              ,"1,500.00",Oct-21
EREWASH BOROUGH COUNCIL,3585,Green Space                   ,Materials/Consumables         ,06-Sep-2021,TUDOR ENVIRONMENTAL                     ,650.00,Oct-21
EREWASH BOROUGH COUNCIL,3566,Green Space                   ,Materials/Consumables         ,03-Sep-2021,TUDOR ENVIRONMENTAL                     ,889.20,Oct-21
EREWASH BOROUGH COUNCIL,4390,Green Space                   ,Contracted Services           ,30-Sep-2021,TUDOR ENVIRONMENTAL                     ,415.56,Oct-21
EREWASH BOROUGH COUNCIL,4647,Homelessness                  ,Temporary Accommodation       ,30-Sep-2021,TWIN OAKS HOTEL LIMITED                 ,"1,542.78",Oct-21
EREWASH BOROUGH COUNCIL,4646,Homelessness                  ,Temporary Accommodation       ,14-Sep-2021,TWIN OAKS HOTEL LIMITED                 ,"2,399.88",Oct-21
EREWASH BOROUGH COUNCIL,4165,EBC Balance Sheet             ,Payroll Coll Acc - Trade Union,27-Sep-2021,UNISON                                  ,422.40,Oct-21
EREWASH BOROUGH COUNCIL,5088,EBC Balance Sheet             ,Payroll Coll Acc - Trade Union,25-Oct-2021,UNISON                                  ,434.30,Oct-21
EREWASH BOROUGH COUNCIL,3788,Public Conveniences           ,Planned Preventative Maintenan,10-Sep-2021,V G STOKES & SONS.                      ,"1,226.00",Oct-21
EREWASH BOROUGH COUNCIL,3965,Property and Estates          ,Reactive Maintenance          ,14-Sep-2021,V G STOKES & SONS.                      ,350.00,Oct-21
EREWASH BOROUGH COUNCIL,3986,Pedestrian Zones - Ilk and LE ,Planned Preventative Maintenan,14-Sep-2021,V G STOKES & SONS.                      ,"5,530.00",Oct-21
EREWASH BOROUGH COUNCIL,3986,Pedestrian Zones - Ilk and LE ,Reactive Maintenance          ,14-Sep-2021,V G STOKES & SONS.                      ,"2,127.00",Oct-21
EREWASH BOROUGH COUNCIL,3555,Household Waste Collection    ,Repairs and Maintenance       ,03-Sep-2021,VEHICLE WEIGHING SOLUTIONS              ,295.31,Oct-21
EREWASH BOROUGH COUNCIL,3771,Household Waste Collection    ,Repairs and Maintenance       ,09-Sep-2021,VEHICLE WEIGHING SOLUTIONS              ,295.31,Oct-21
EREWASH BOROUGH COUNCIL,3771,Household Waste Collection    ,Repairs and Maintenance       ,09-Sep-2021,VEHICLE WEIGHING SOLUTIONS              ,400.00,Oct-21
EREWASH BOROUGH COUNCIL,4553,Trade Waste                   ,Repairs and Maintenance       ,14-Sep-2021,VEHICLE WEIGHING SOLUTIONS              ,496.00,Oct-21
EREWASH BOROUGH COUNCIL,4553,Trade Waste                   ,Repairs and Maintenance       ,14-Sep-2021,VEHICLE WEIGHING SOLUTIONS              ,295.31,Oct-21
EREWASH BOROUGH COUNCIL,4560,Household Waste Collection    ,Repairs and Maintenance       ,30-Sep-2021,VEHICLE WEIGHING SOLUTIONS              ,324.63,Oct-21
EREWASH BOROUGH COUNCIL,3928,Accountancy                   ,Software Licences             ,16-Sep-2021,VERSION 1 SOLUTIONS LIMITED             ,772.50,Oct-21
EREWASH BOROUGH COUNCIL,4787,Homelessness                  ,Temporary Accommodation       ,12-Aug-2021,VILLAGE NOTTINGHAM                      ,465.16,Oct-21
EREWASH BOROUGH COUNCIL,3773,Green Space                   ,Materials/Consumables         ,31-Aug-2021,WARD RECYCLING                          ,676.00,Oct-21
EREWASH BOROUGH COUNCIL,4432,Green Space                   ,Materials/Consumables         ,30-Sep-2021,WAYNE PEAPELL CONSULTANCY LTD           ,460.00,Oct-21
EREWASH BOROUGH COUNCIL,4394,Street Scene                  ,Contracted Services           ,01-Sep-2021,WAYNE PEAPELL CONSULTANCY LTD           ,"1,495.37",Oct-21
EREWASH BOROUGH COUNCIL,4033,Community Safety              ,Contracted Services           ,22-Sep-2021,WHEEL PLANT LTD                         ,"2,450.00",Oct-21
EREWASH BOROUGH COUNCIL,4704,Play Areas                    ,Materials/Consumables         ,31-Aug-2021,WICKSTEED LEISURE LTD                   ,540.00,Oct-21
EREWASH BOROUGH COUNCIL,4439,Play Areas                    ,Materials/Consumables         ,30-Sep-2021,WICKSTEED LEISURE LTD                   ,321.92,Oct-21
EREWASH BOROUGH COUNCIL,4838,,,18-Oct-2021,WILKIN CHAPMAN LLP                      ,290.02,Oct-21
EREWASH BOROUGH COUNCIL,4829,Trade Waste                   ,Repairs and Maintenance       ,30-Sep-2021,WILLIAM WEST & SONS (ILKESTON) LIMITED  ,368.50,Oct-21
EREWASH BOROUGH COUNCIL,3886,Household Waste Collection    ,Agency Staff                  ,16-Sep-2021,WORKCHAIN LTD                           ,"1,389.50",Oct-21
EREWASH BOROUGH COUNCIL,3886,Kerbside Recycling Collection ,Agency Staff                  ,16-Sep-2021,WORKCHAIN LTD                           ,926.33,Oct-21
EREWASH BOROUGH COUNCIL,3662,Household Waste Collection    ,Agency Staff                  ,08-Sep-2021,WORKCHAIN LTD                           ,"1,804.71",Oct-21
EREWASH BOROUGH COUNCIL,3662,Kerbside Recycling Collection ,Agency Staff                  ,08-Sep-2021,WORKCHAIN LTD                           ,"1,203.14",Oct-21
EREWASH BOROUGH COUNCIL,3532,Household Waste Collection    ,Agency Staff                  ,28-Aug-2021,WORKCHAIN LTD                           ,"1,734.26",Oct-21
EREWASH BOROUGH COUNCIL,3532,Kerbside Recycling Collection ,Agency Staff                  ,28-Aug-2021,WORKCHAIN LTD                           ,"1,156.18",Oct-21
EREWASH BOROUGH COUNCIL,4103,Household Waste Collection    ,Agency Staff                  ,18-Sep-2021,WORKCHAIN LTD                           ,"2,109.68",Oct-21
EREWASH BOROUGH COUNCIL,4103,Household Waste Collection    ,Agency Staff                  ,18-Sep-2021,WORKCHAIN LTD                           ,442.98,Oct-21
EREWASH BOROUGH COUNCIL,4302,Household Waste Collection    ,Agency Staff                  ,25-Sep-2021,WORKCHAIN LTD                           ,"2,890.44",Oct-21
EREWASH BOROUGH COUNCIL,4537,Household Waste Collection    ,Agency Staff                  ,02-Oct-2021,WORKCHAIN LTD                           ,"2,890.44",Oct-21
EREWASH BOROUGH COUNCIL,4551,Transport Trading Account     ,Software Licences             ,25-Aug-2021,WURTH UK LIMITED                        ,905.00,Oct-21
EREWASH BOROUGH COUNCIL,4216,Hackney Carriage Private Hire ,Materials/Consumables         ,27-Sep-2021,MOGO (UK)                               ,"2,878.34",Oct-21
EREWASH BOROUGH COUNCIL,4187,Property and Estates          ,Reactive Maintenance          ,04-Sep-2021,N B CONSTRUCTION                        ,395.00,Oct-21
EREWASH BOROUGH COUNCIL,4186,Property and Estates          ,Reactive Maintenance          ,03-Sep-2021,N B CONSTRUCTION                        ,820.00,Oct-21
EREWASH BOROUGH COUNCIL,4173,Training - Personnel Only     ,Courses and Seminars          ,31-Mar-2021,NORTH EAST DERBYSHIRE DISTRICT COUNCIL. ,380.00,Oct-21
EREWASH BOROUGH COUNCIL,4317,ICT Support Services          ,Software Licences             ,27-Sep-2021,NORTH EAST DERBYSHIRE DISTRICT COUNCIL. ,550.00,Oct-21
EREWASH BOROUGH COUNCIL,4881,Homelessness                  ,Temporary Accommodation       ,13-Aug-2021,NOVOTEL NOTTINGHAM                      ,514.32,Oct-21
EREWASH BOROUGH COUNCIL,4880,Homelessness                  ,Temporary Accommodation       ,27-Aug-2021,NOVOTEL NOTTINGHAM                      ,"1,114.36",Oct-21
EREWASH BOROUGH COUNCIL,3764,Homelessness                  ,Temporary Accommodation       ,19-Jun-2021,NOVOTEL NOTTINGHAM                      ,728.62,Oct-21
EREWASH BOROUGH COUNCIL,4648,Homelessness                  ,Temporary Accommodation       ,30-Sep-2021,NOVOTEL NOTTINGHAM                      ,"1,302.96",Oct-21
EREWASH BOROUGH COUNCIL,4299,Infec Disease & Food Poisoning,Fees Costs and Expenses       ,29-Sep-2021,OSBORNE RICHARDSON                      ,315.00,Oct-21
EREWASH BOROUGH COUNCIL,5117,Personnel                     ,Long Service Award            ,19-Oct-2021,PARK RETAIL                             ,500.00,Oct-21
EREWASH BOROUGH COUNCIL,4168,EBC Balance Sheet             ,EBC Fit for Work Scheme       ,27-Sep-2021,PARKWOOD LEISURE LTD                    ,526.50,Oct-21
EREWASH BOROUGH COUNCIL,5085,EBC Balance Sheet             ,EBC Fit for Work Scheme       ,25-Oct-2021,PARKWOOD LEISURE LTD                    ,486.00,Oct-21
EREWASH BOROUGH COUNCIL,5056,Leisure Services              ,Contracted Services           ,20-Oct-2021,PARKWOOD LEISURE LTD                    ,"26,831.98",Oct-21
EREWASH BOROUGH COUNCIL,4835,Leisure Services              ,Project Grants                ,11-Oct-2021,PARKWOOD LEISURE LTD                    ,"27,691.00",Oct-21
EREWASH BOROUGH COUNCIL,4316,Street Scene                  ,Repairs and Maintenance       ,30-Sep-2021,PARTSPLUS                               ,290.40,Oct-21
EREWASH BOROUGH COUNCIL,4213,Outreach Project              ,Repairs and Maintenance       ,28-Sep-2021,PARTSPLUS                               ,322.99,Oct-21
EREWASH BOROUGH COUNCIL,4197,Trade Waste                   ,Trade Waste                   ,28-Sep-2021,REDACTED PERSONAL DATA,251.05,Oct-21
EREWASH BOROUGH COUNCIL,4384,Building Control - Fee Earning,Building Control Fees         ,04-Oct-2021,REDACTED PERSONAL DATA,316.67,Oct-21
EREWASH BOROUGH COUNCIL,4384,Building Control - Fee Earning,Building Control Fees         ,04-Oct-2021,REDACTED PERSONAL DATA,316.67,Oct-21
EREWASH BOROUGH COUNCIL,4845,Community Grants              ,Grants and Subscriptions      ,11-Oct-2021,REDACTED PERSONAL DATA,500.00,Oct-21
EREWASH BOROUGH COUNCIL,3563,Household Waste Collection    ,Repairs and Maintenance       ,03-Sep-2021,PB AUTO ELECTRICS                       ,403.25,Oct-21
EREWASH BOROUGH COUNCIL,3556,Rutland Sports Park           ,PPM Mechanical and Equipment  ,04-Sep-2021,PEEL ELECTRICAL LTD                     ,376.35,Oct-21
EREWASH BOROUGH COUNCIL,4146,Property and Estates          ,Repairs and Maintenance       ,24-Sep-2021,PEEL ELECTRICAL LTD                     ,547.97,Oct-21
EREWASH BOROUGH COUNCIL,3996,,,14-Sep-2021,PENHAM EXCEL LIMITED                    ,725.11,Oct-21
EREWASH BOROUGH COUNCIL,4849,,,18-Oct-2021,PENHAM EXCEL LIMITED                    ,629.84,Oct-21
EREWASH BOROUGH COUNCIL,4424,,,04-Oct-2021,PENHAM EXCEL LIMITED                    ,625.76,Oct-21
EREWASH BOROUGH COUNCIL,3579,Planning                      ,External Property Works       ,02-Sep-2021,PER CONSULTING LTD                      ,"3,000.00",Oct-21
EREWASH BOROUGH COUNCIL,4014,ICT Support Services          ,Software Licences             ,20-Sep-2021,PHOENIX SOFTWARE LTD                    ,"1,683.00",Oct-21
EREWASH BOROUGH COUNCIL,4014,ICT Support Services          ,Software Licences             ,20-Sep-2021,PHOENIX SOFTWARE LTD                    ,"1,026.30",Oct-21
EREWASH BOROUGH COUNCIL,3381,Fireworks Display             ,Materials/Consumables         ,31-Aug-2021,PICTORIAL LTD                           ,290.00,Oct-21
EREWASH BOROUGH COUNCIL,3955,Green Space                   ,Materials/Consumables         ,17-Sep-2021,PICTORIAL LTD                           ,800.00,Oct-21
EREWASH BOROUGH COUNCIL,3812,Property and Estates          ,Reactive Maintenance          ,14-Sep-2021,PICTORIAL LTD                           ,400.00,Oct-21
EREWASH BOROUGH COUNCIL,4416,Development Control           ,Planning Fees                 ,04-Oct-2021,PORTALPLANQUEST LTD                     ,462.00,Oct-21
EREWASH BOROUGH COUNCIL,5146,Development Control           ,Planning Fees                 ,27-Oct-2021,PORTALPLANQUEST LTD                     ,462.00,Oct-21
EREWASH BOROUGH COUNCIL,4850,Development Control           ,Planning Fees                 ,19-Oct-2021,PORTALPLANQUEST LTD                     ,462.00,Oct-21
EREWASH BOROUGH COUNCIL,4868,Development Control           ,Planning Fees                 ,19-Oct-2021,PORTALPLANQUEST LTD                     ,462.00,Oct-21
EREWASH BOROUGH COUNCIL,4663,Erewash Museum                ,Special Events                ,12-Aug-2021,PPL PRS LTD                             ,357.04,Oct-21
EREWASH BOROUGH COUNCIL,4029,Green Space                   ,Materials/Consumables         ,20-Sep-2021,PROTECTIVE WEAR SUPPLIES LTD            ,499.80,Oct-21
EREWASH BOROUGH COUNCIL,4312,Green Space                   ,Materials/Consumables         ,28-Sep-2021,PROTECTIVE WEAR SUPPLIES LTD            ,635.29,Oct-21
EREWASH BOROUGH COUNCIL,3887,Green Space                   ,Materials/Consumables         ,15-Sep-2021,PROTECTIVE WEAR SUPPLIES LTD            ,876.92,Oct-21
EREWASH BOROUGH COUNCIL,4414,Economic Development          ,Contracted Services           ,01-Oct-2021,PROXIMITY FUTURES T/A ELEPHANT WIFI     ,303.33,Oct-21
EREWASH BOROUGH COUNCIL,4166,EBC Balance Sheet             ,Payroll Coll Acc - AVCS       ,27-Sep-2021,PRUDENTIAL                              ,"2,693.16",Oct-21
EREWASH BOROUGH COUNCIL,5087,EBC Balance Sheet             ,Payroll Coll Acc - AVCS       ,25-Oct-2021,PRUDENTIAL                              ,"2,693.16",Oct-21
EREWASH BOROUGH COUNCIL,4430,Pride In Erewash              ,Materials/Consumables         ,04-Oct-2021,B&B AUDIO                               ,315.00,Oct-21
EREWASH BOROUGH COUNCIL,3560,Green Space                   ,Materials/Consumables         ,02-Sep-2021,BANNER GROUP LIMITED                    ,670.79,Oct-21
EREWASH BOROUGH COUNCIL,4383,Trees Hedges Local Nature Res ,Contracted Services           ,28-Sep-2021,BEECHWOOD TREES AND LANDSCAPLES LTD     ,"11,000.00",Oct-21
EREWASH BOROUGH COUNCIL,4579,Green Space                   ,Contracted Services           ,16-Jun-2021,BESTMIX                                 ,465.00,Oct-21
EREWASH BOROUGH COUNCIL,4159,ICT Support Services          ,Software Licences             ,31-Aug-2021,BOTTOMLINE TECHNOLOGIES LTD             ,"4,931.98",Oct-21
EREWASH BOROUGH COUNCIL,4133,ICT Support Services          ,Telephones                    ,22-Sep-2021,BRITISH TELECOMMUNICATIONS PLC          ,"1,782.47",Oct-21
EREWASH BOROUGH COUNCIL,2288,ICT Support Services          ,Data Lines                    ,14-Jul-2021,BT GLOBAL SERVICES                      ,"8,094.66",Oct-21
EREWASH BOROUGH COUNCIL,4193,ICT Support Services          ,Data Lines                    ,16-Apr-2021,BT GLOBAL SERVICES                      ,"8,094.66",Oct-21
EREWASH BOROUGH COUNCIL,3888,Homelessness                  ,Agency Staff                  ,08-Sep-2021,BUCKINGHAM FUTURES LIMITED              ,998.47,Oct-21
EREWASH BOROUGH COUNCIL,3902,Homelessness                  ,Agency Staff                  ,15-Sep-2021,BUCKINGHAM FUTURES LIMITED              ,"1,258.00",Oct-21
EREWASH BOROUGH COUNCIL,4126,Urban Renewal                 ,Agency Staff                  ,22-Sep-2021,BUCKINGHAM FUTURES LIMITED              ,"1,258.00",Oct-21
EREWASH BOROUGH COUNCIL,4318,Urban Renewal                 ,Agency Staff                  ,29-Sep-2021,BUCKINGHAM FUTURES LIMITED              ,"1,258.00",Oct-21
EREWASH BOROUGH COUNCIL,4587,Urban Renewal                 ,Agency Staff                  ,06-Oct-2021,BUCKINGHAM FUTURES LIMITED              ,"1,258.00",Oct-21
EREWASH BOROUGH COUNCIL,3545,Occupational Health & Welfare ,Occupational Health Service   ,01-Sep-2021,BUPA HEALTH CLINICS                     ,418.55,Oct-21
EREWASH BOROUGH COUNCIL,4393,Occupational Health & Welfare ,Occupational Health Service   ,01-Oct-2021,BUPA HEALTH CLINICS                     ,418.55,Oct-21
EREWASH BOROUGH COUNCIL,3581,Commissioned Projects         ,General Equipment             ,06-Sep-2021,Balanceability Ltd.                     ,251.00,Oct-21
EREWASH BOROUGH COUNCIL,4688,Pride In Erewash              ,Materials/Consumables         ,30-Sep-2021,C H SMITH (ENGRAVERS)                   ,598.33,Oct-21
EREWASH BOROUGH COUNCIL,4300,Performance and Community     ,Software and Implementation   ,27-Aug-2021,CAPITA                                  ,"13,782.95",Oct-21
EREWASH BOROUGH COUNCIL,5798,Treasury and Bank Charges     ,Credit/Debit Card Charges     ,08-Oct-2021,CAPITA                                  ,"4,619.66",Oct-21
EREWASH BOROUGH COUNCIL,3668,ICT Support Services          ,Maintenance of Equipment      ,07-Sep-2021,CCS MEDIA LIMITED                       ,465.90,Oct-21
EREWASH BOROUGH COUNCIL,3777,ICT Support Services          ,General Equipment             ,08-Sep-2021,CCS MEDIA LIMITED                       ,"3,023.40",Oct-21
EREWASH BOROUGH COUNCIL,4449,EBC Balance Sheet             ,Fuel Store                    ,27-Sep-2021,CERTAS ENERGY UK LIMITED T/A CARLTON FUE,"32,361.61",Oct-21
EREWASH BOROUGH COUNCIL,3761,ICT Support Services          ,Mobile Phones                 ,01-Sep-2021,CLASS AFFINITY PROJECTS LTD             ,"2,733.50",Oct-21
EREWASH BOROUGH COUNCIL,4763,ICT Support Services          ,Mobile Phones                 ,01-Oct-2021,CLASS AFFINITY PROJECTS LTD             ,"2,912.09",Oct-21
EREWASH BOROUGH COUNCIL,4315,Green Space                   ,Repairs and Maintenance       ,30-Sep-2021,COOLAIR LOGAN LIMITED                   ,475.00,Oct-21
EREWASH BOROUGH COUNCIL,4441,Civic Transport               ,Hire Charges                  ,01-Oct-2021,CRUISE-IN-CONTROL LIMITED               ,662.40,Oct-21
EREWASH BOROUGH COUNCIL,4204,Development Control           ,Work In Default               ,30-Apr-2021,CUSHMAN & WAKEFIELD DEBENHAM TIE LEUNG  ,"2,750.00",Oct-21
EREWASH BOROUGH COUNCIL,3961,Licensing Liquor Entment Other,Materials/Consumables         ,08-Sep-2021,EURO BUSINESS SERVICES                  ,390.42,Oct-21
EREWASH BOROUGH COUNCIL,4128,Street Scene                  ,Agency Staff                  ,13-Sep-2021,EXTRA PERSONNEL LTD                     ,455.91,Oct-21
EREWASH BOROUGH COUNCIL,4129,Public Conveniences           ,Agency Staff                  ,13-Sep-2021,EXTRA PERSONNEL LTD                     ,499.87,Oct-21
EREWASH BOROUGH COUNCIL,4129,Green Space                   ,Agency Staff                  ,13-Sep-2021,EXTRA PERSONNEL LTD                     ,"1,691.71",Oct-21
EREWASH BOROUGH COUNCIL,4129,Street Scene                  ,Agency Staff                  ,13-Sep-2021,EXTRA PERSONNEL LTD                     ,"1,691.71",Oct-21
EREWASH BOROUGH COUNCIL,4131,Green Space                   ,Agency Staff                  ,13-Sep-2021,EXTRA PERSONNEL LTD                     ,"2,265.60",Oct-21
EREWASH BOROUGH COUNCIL,4131,Street Scene                  ,Agency Staff                  ,13-Sep-2021,EXTRA PERSONNEL LTD                     ,"2,265.60",Oct-21
EREWASH BOROUGH COUNCIL,3936,Street Scene                  ,Agency Staff                  ,06-Sep-2021,EXTRA PERSONNEL LTD                     ,315.63,Oct-21
EREWASH BOROUGH COUNCIL,3937,Household Waste Collection    ,Agency Staff                  ,06-Sep-2021,EXTRA PERSONNEL LTD                     ,432.53,Oct-21
EREWASH BOROUGH COUNCIL,3937,Kerbside Recycling Collection ,Agency Staff                  ,06-Sep-2021,EXTRA PERSONNEL LTD                     ,0.00,Oct-21
EREWASH BOROUGH COUNCIL,3940,Public Conveniences           ,Agency Staff                  ,06-Sep-2021,EXTRA PERSONNEL LTD                     ,499.87,Oct-21
EREWASH BOROUGH COUNCIL,3940,Green Space                   ,Agency Staff                  ,06-Sep-2021,EXTRA PERSONNEL LTD                     ,"1,755.83",Oct-21
EREWASH BOROUGH COUNCIL,3940,Street Scene                  ,Agency Staff                  ,06-Sep-2021,EXTRA PERSONNEL LTD                     ,"1,755.83",Oct-21
EREWASH BOROUGH COUNCIL,3987,Public Conveniences           ,Agency Staff                  ,20-Sep-2021,EXTRA PERSONNEL LTD                     ,254.93,Oct-21
EREWASH BOROUGH COUNCIL,3987,Street Scene                  ,Agency Staff                  ,20-Sep-2021,EXTRA PERSONNEL LTD                     ,"2,057.15",Oct-21
EREWASH BOROUGH COUNCIL,3987,Green Space                   ,Agency Staff                  ,20-Sep-2021,EXTRA PERSONNEL LTD                     ,"2,057.14",Oct-21
EREWASH BOROUGH COUNCIL,3938,Green Space                   ,Agency Staff                  ,06-Sep-2021,EXTRA PERSONNEL LTD                     ,"2,457.64",Oct-21
EREWASH BOROUGH COUNCIL,3938,Street Scene                  ,Agency Staff                  ,06-Sep-2021,EXTRA PERSONNEL LTD                     ,"2,457.64",Oct-21
EREWASH BOROUGH COUNCIL,3939,Household Waste Collection    ,Agency Staff                  ,06-Sep-2021,EXTRA PERSONNEL LTD                     ,"6,140.27",Oct-21
EREWASH BOROUGH COUNCIL,3939,Kerbside Recycling Collection ,Agency Staff                  ,06-Sep-2021,EXTRA PERSONNEL LTD                     ,"4,093.51",Oct-21
EREWASH BOROUGH COUNCIL,3939,Street Scene                  ,Agency Staff                  ,06-Sep-2021,EXTRA PERSONNEL LTD                     ,550.56,Oct-21
EREWASH BOROUGH COUNCIL,4356,Development Control           ,Agency Staff                  ,20-Sep-2021,EXTRA PERSONNEL LTD                     ,319.92,Oct-21
EREWASH BOROUGH COUNCIL,4590,Street Scene                  ,Agency Staff                  ,27-Sep-2021,EXTRA PERSONNEL LTD                     ,882.49,Oct-21
EREWASH BOROUGH COUNCIL,4593,Street Scene                  ,Agency Staff                  ,27-Sep-2021,EXTRA PERSONNEL LTD                     ,"1,108.56",Oct-21
EREWASH BOROUGH COUNCIL,4592,Public Conveniences           ,Agency Staff                  ,27-Sep-2021,EXTRA PERSONNEL LTD                     ,499.87,Oct-21
EREWASH BOROUGH COUNCIL,4592,Green Space                   ,Agency Staff                  ,27-Sep-2021,EXTRA PERSONNEL LTD                     ,"1,576.14",Oct-21
EREWASH BOROUGH COUNCIL,4592,Street Scene                  ,Agency Staff                  ,27-Sep-2021,EXTRA PERSONNEL LTD                     ,"1,576.14",Oct-21
EREWASH BOROUGH COUNCIL,4594,Green Space                   ,Agency Staff                  ,27-Sep-2021,EXTRA PERSONNEL LTD                     ,"2,017.51",Oct-21
EREWASH BOROUGH COUNCIL,4594,Street Scene                  ,Agency Staff                  ,27-Sep-2021,EXTRA PERSONNEL LTD                     ,"2,017.50",Oct-21
EREWASH BOROUGH COUNCIL,4869,Household Waste Collection    ,Agency Staff                  ,20-Sep-2021,EXTRA PERSONNEL LTD                     ,"6,167.60",Oct-21
EREWASH BOROUGH COUNCIL,4869,Kerbside Recycling Collection ,Agency Staff                  ,20-Sep-2021,EXTRA PERSONNEL LTD                     ,"4,111.74",Oct-21
EREWASH BOROUGH COUNCIL,4869,Street Scene                  ,Agency Staff                  ,20-Sep-2021,EXTRA PERSONNEL LTD                     ,550.56,Oct-21
EREWASH BOROUGH COUNCIL,4352,Street Scene                  ,Agency Staff                  ,20-Sep-2021,EXTRA PERSONNEL LTD                     ,806.61,Oct-21
EREWASH BOROUGH COUNCIL,4355,Public Conveniences           ,Agency Staff                  ,20-Sep-2021,EXTRA PERSONNEL LTD                     ,499.87,Oct-21
EREWASH BOROUGH COUNCIL,4355,Green Space                   ,Agency Staff                  ,20-Sep-2021,EXTRA PERSONNEL LTD                     ,"1,905.71",Oct-21
EREWASH BOROUGH COUNCIL,4355,Street Scene                  ,Agency Staff                  ,20-Sep-2021,EXTRA PERSONNEL LTD                     ,"1,905.70",Oct-21
EREWASH BOROUGH COUNCIL,4354,Green Space                   ,Agency Staff                  ,20-Sep-2021,EXTRA PERSONNEL LTD                     ,"2,415.81",Oct-21
EREWASH BOROUGH COUNCIL,4354,Street Scene                  ,Agency Staff                  ,20-Sep-2021,EXTRA PERSONNEL LTD                     ,"2,415.80",Oct-21
EREWASH BOROUGH COUNCIL,4778,Street Scene                  ,Agency Staff                  ,04-Oct-2021,EXTRA PERSONNEL LTD                     ,934.45,Oct-21
EREWASH BOROUGH COUNCIL,4776,Public Conveniences           ,Agency Staff                  ,04-Oct-2021,EXTRA PERSONNEL LTD                     ,499.87,Oct-21
EREWASH BOROUGH COUNCIL,4776,Green Space                   ,Agency Staff                  ,04-Oct-2021,EXTRA PERSONNEL LTD                     ,"1,564.95",Oct-21
EREWASH BOROUGH COUNCIL,4776,Street Scene                  ,Agency Staff                  ,04-Oct-2021,EXTRA PERSONNEL LTD                     ,"1,564.95",Oct-21
EREWASH BOROUGH COUNCIL,4775,Green Space                   ,Agency Staff                  ,04-Oct-2021,EXTRA PERSONNEL LTD                     ,"2,186.08",Oct-21
EREWASH BOROUGH COUNCIL,4775,Street Scene                  ,Agency Staff                  ,04-Oct-2021,EXTRA PERSONNEL LTD                     ,"2,186.07",Oct-21
EREWASH BOROUGH COUNCIL,4130,Household Waste Collection    ,Agency Staff                  ,24-Sep-2021,EXTRA PERSONNEL LTD                     ,"5,438.36",Oct-21
EREWASH BOROUGH COUNCIL,4130,Kerbside Recycling Collection ,Agency Staff                  ,24-Sep-2021,EXTRA PERSONNEL LTD                     ,"3,625.58",Oct-21
EREWASH BOROUGH COUNCIL,4130,Street Scene                  ,Agency Staff                  ,24-Sep-2021,EXTRA PERSONNEL LTD                     ,550.56,Oct-21
EREWASH BOROUGH COUNCIL,4591,Household Waste Collection    ,Agency Staff                  ,27-Sep-2021,EXTRA PERSONNEL LTD                     ,"6,350.84",Oct-21
EREWASH BOROUGH COUNCIL,4591,Kerbside Recycling Collection ,Agency Staff                  ,27-Sep-2021,EXTRA PERSONNEL LTD                     ,"4,233.90",Oct-21
EREWASH BOROUGH COUNCIL,3689,Kerbside Recycling Collection ,Waste Disposal                ,31-Aug-2021,GAE SMITH HOLDINGS T/A CASEPAK          ,"23,312.70",Oct-21
EREWASH BOROUGH COUNCIL,4588,Kerbside Recycling Collection ,Waste Disposal                ,30-Sep-2021,GAE SMITH HOLDINGS T/A CASEPAK          ,"22,498.00",Oct-21
EREWASH BOROUGH COUNCIL,4654,Homelessness                  ,Temporary Accommodation       ,11-Oct-2021,GLOBAL VILLAGE HOTEL & RESORTS LTD      ,350.00,Oct-21
EREWASH BOROUGH COUNCIL,4779,Homelessness                  ,Temporary Accommodation       ,06-Oct-2021,GLOBAL VILLAGE HOTEL & RESORTS LTD      ,350.00,Oct-21
EREWASH BOROUGH COUNCIL,4837,Homelessness                  ,Temporary Accommodation       ,18-Oct-2021,GLOBAL VILLAGE HOTEL & RESORTS LTD      ,350.00,Oct-21
EREWASH BOROUGH COUNCIL,3660,Green Space                   ,Materials/Consumables         ,05-Sep-2021,GO TRAFFIC MANAGEMENT                   ,895.00,Oct-21
EREWASH BOROUGH COUNCIL,4306,Green Space                   ,Materials/Consumables         ,26-Sep-2021,GO TRAFFIC MANAGEMENT                   ,895.00,Oct-21
EREWASH BOROUGH COUNCIL,4670,Green Space                   ,Materials/Consumables         ,01-Oct-2021,GREEN GARDEN                            ,"6,701.67",Oct-21
EREWASH BOROUGH COUNCIL,3908,Pride In Erewash              ,Materials/Consumables         ,14-Sep-2021,GROUNDSMAN TOOLS AND SUPPLIES LLP       ,471.35,Oct-21
EREWASH BOROUGH COUNCIL,3516,Green Space                   ,Repairs and Maintenance       ,02-Sep-2021,HENTON & CHATTELL LTD                   ,513.57,Oct-21
EREWASH BOROUGH COUNCIL,4140,EBC Balance Sheet             ,Payroll Coll Acc - Income Tax ,18-Oct-2021,HMRC CUMBERNAULD                        ,480.60,Oct-21
EREWASH BOROUGH COUNCIL,4140,EBC Balance Sheet             ,Payroll Coll Acc National Ins ,18-Oct-2021,HMRC CUMBERNAULD                        ,595.62,Oct-21
EREWASH BOROUGH COUNCIL,4363,EBC Balance Sheet             ,Payroll Coll Acc - Income Tax ,18-Oct-2021,HMRC CUMBERNAULD                        ,"65,392.16",Oct-21
EREWASH BOROUGH COUNCIL,4363,EBC Balance Sheet             ,Payroll Coll Acc Student Loan ,18-Oct-2021,HMRC CUMBERNAULD                        ,"1,122.00",Oct-21
EREWASH BOROUGH COUNCIL,4363,EBC Balance Sheet             ,Payroll Coll Acc National Ins ,18-Oct-2021,HMRC CUMBERNAULD                        ,"98,865.77",Oct-21
EREWASH BOROUGH COUNCIL,4363,EBC Balance Sheet             ,Apprenticeship Levy           ,18-Oct-2021,HMRC CUMBERNAULD                        ,"1,994.00",Oct-21
EREWASH BOROUGH COUNCIL,4363,EBC Balance Sheet             ,Apprenticeship Levy           ,18-Oct-2021,HMRC CUMBERNAULD                        ,"1,250.00",Oct-21
EREWASH BOROUGH COUNCIL,4350,EBC Balance Sheet             ,Payroll Coll Acc - Income Tax ,18-Oct-2021,HMRC CUMBERNAULD                        ,"65,392.16",Oct-21
EREWASH BOROUGH COUNCIL,4350,EBC Balance Sheet             ,Payroll Coll Acc Student Loan ,18-Oct-2021,HMRC CUMBERNAULD                        ,"1,122.00",Oct-21
EREWASH BOROUGH COUNCIL,4350,EBC Balance Sheet             ,Payroll Coll Acc National Ins ,18-Oct-2021,HMRC CUMBERNAULD                        ,"98,865.77",Oct-21
EREWASH BOROUGH COUNCIL,4350,EBC Balance Sheet             ,Apprenticeship Levy           ,18-Oct-2021,HMRC CUMBERNAULD                        ,"1,994.00",Oct-21
EREWASH BOROUGH COUNCIL,4350,EBC Balance Sheet             ,Apprenticeship Levy           ,18-Oct-2021,HMRC CUMBERNAULD                        ,"1,250.00",Oct-21
EREWASH BOROUGH COUNCIL,5037,Treasury and Bank Charges     ,Allpay/Post Office Charges    ,26-Oct-2021,ALLPAY LIMITED                          ,"1,058.63",Oct-21
EREWASH BOROUGH COUNCIL,4443,Property and Estates          ,Reactive Maintenance          ,04-Oct-2021,ALPHA DRAIN SERVICES                    ,270.00,Oct-21
EREWASH BOROUGH COUNCIL,3403,Property and Estates          ,Reactive Maintenance          ,31-Aug-2021,ALPHA PARTNER (MIDLANDS)  LIMITED       ,274.40,Oct-21
EREWASH BOROUGH COUNCIL,3396,Civic Accommodation Ilkeston  ,Reactive Maintenance          ,31-Aug-2021,ALPHA PARTNER (MIDLANDS)  LIMITED       ,740.00,Oct-21
EREWASH BOROUGH COUNCIL,3405,Property and Estates          ,Reactive Maintenance          ,31-Aug-2021,ALPHA PARTNER (MIDLANDS)  LIMITED       ,810.00,Oct-21
EREWASH BOROUGH COUNCIL,3397,Merlin Way Depot              ,Planned Preventative Maintenan,31-Aug-2021,ALPHA PARTNER (MIDLANDS)  LIMITED       ,"1,531.30",Oct-21
EREWASH BOROUGH COUNCIL,3402,Property and Estates          ,Reactive Maintenance          ,31-Aug-2021,ALPHA PARTNER (MIDLANDS)  LIMITED       ,"1,900.00",Oct-21
EREWASH BOROUGH COUNCIL,3809,Property and Estates          ,Reactive Maintenance          ,13-Sep-2021,ALPHA PARTNER (MIDLANDS)  LIMITED       ,"1,899.37",Oct-21
EREWASH BOROUGH COUNCIL,4201,Property and Estates          ,Reactive Maintenance          ,28-Sep-2021,ALPHA PARTNER (MIDLANDS)  LIMITED       ,"1,600.00",Oct-21
EREWASH BOROUGH COUNCIL,4202,Green Space                   ,Materials/Consumables         ,21-Jun-2021,AMBEROL LIMITED                         ,302.33,Oct-21
EREWASH BOROUGH COUNCIL,4392,ICT Support Services          ,Office Paper                  ,30-Sep-2021,ANTALIS DOCUMENT SUPPLIES               ,273.00,Oct-21
EREWASH BOROUGH COUNCIL,4207,ICT Support Services          ,Office Paper                  ,28-Sep-2021,ANTALIS DOCUMENT SUPPLIES               ,273.00,Oct-21
EREWASH BOROUGH COUNCIL,5124,EBC Balance Sheet             ,AR Refunds Control Account    ,26-Oct-2021,REDACTED PERSONAL DATA,476.56,Oct-21
EREWASH BOROUGH COUNCIL,3390,Pedestrian Zones - Ilk and LE ,Reactive Maintenance          ,31-Aug-2021,ATG ACCESS LTD                          ,650.30,Oct-21
EREWASH BOROUGH COUNCIL,4541,Green Space                   ,Contracted Services           ,01-Oct-2021,LANGUARD LTD                            ,"3,572.79",Oct-21
EREWASH BOROUGH COUNCIL,3558,Legal Services                ,Reference Literature and Publi,31-Aug-2021,LEXISNEXIS BUTTERWORTHS                 ,499.00,Oct-21
EREWASH BOROUGH COUNCIL,5768,Treasury and Bank Charges     ,BACS Charges                  ,11-Oct-2021,LLOYDS BANK PLC                         ,552.03,Oct-21
EREWASH BOROUGH COUNCIL,3970,Personnel                     ,Legal Expenses                ,13-Sep-2021,LOCAL GOVERNMENT ASSOCIATION            ,300.00,Oct-21
EREWASH BOROUGH COUNCIL,3561,Household Waste Collection    ,Tyres                         ,31-Aug-2021,LODGE TYRE COMPANY LTD                  ,"1,967.42",Oct-21
EREWASH BOROUGH COUNCIL,3561,Kerbside Recycling Collection ,Tyres                         ,31-Aug-2021,LODGE TYRE COMPANY LTD                  ,"1,895.41",Oct-21
EREWASH BOROUGH COUNCIL,3561,Street Scene                  ,Tyres                         ,31-Aug-2021,LODGE TYRE COMPANY LTD                  ,40.00,Oct-21
EREWASH BOROUGH COUNCIL,3561,Green Space                   ,Tyres                         ,31-Aug-2021,LODGE TYRE COMPANY LTD                  ,372.80,Oct-21
EREWASH BOROUGH COUNCIL,3561,Neighbourhood Wardens         ,Tyres                         ,31-Aug-2021,LODGE TYRE COMPANY LTD                  ,46.35,Oct-21
EREWASH BOROUGH COUNCIL,3399,Household Waste Collection    ,Personal Protective Equipment ,31-Aug-2021,MAIN MAN SUPPLIES LTD                   ,516.00,Oct-21
EREWASH BOROUGH COUNCIL,3399,Kerbside Recycling Collection ,Personal Protective Equipment ,31-Aug-2021,MAIN MAN SUPPLIES LTD                   ,516.00,Oct-21
EREWASH BOROUGH COUNCIL,4420,Community Safety              ,Grants and Subscriptions      ,02-Jul-2021,MALLARD CONSULTANCY LTD                 ,490.00,Oct-21
EREWASH BOROUGH COUNCIL,4420,Basic Command Unit            ,Project Grants                ,02-Jul-2021,MALLARD CONSULTANCY LTD                 ,500.00,Oct-21
EREWASH BOROUGH COUNCIL,4629,Insurances (Corporate Matters),Insurance                     ,10-Sep-2021,MARSH LTD                               ,"1,660.00",Oct-21
EREWASH BOROUGH COUNCIL,3599,Property and Estates          ,Repairs and Maintenance       ,07-Sep-2021,MDB PLUMBING (NOTTM) LTD                ,"1,132.65",Oct-21
EREWASH BOROUGH COUNCIL,4143,Property and Estates          ,Repairs and Maintenance       ,24-Sep-2021,MDB PLUMBING (NOTTM) LTD                ,311.03,Oct-21
EREWASH BOROUGH COUNCIL,5047,Occupational Health & Welfare ,Occupational Health Service   ,07-Sep-2021,MEDIGOLD HEALTH CONSULTANCY LIMITED     ,593.50,Oct-21
EREWASH BOROUGH COUNCIL,3527,Car Parking                   ,Contracted Services           ,01-Sep-2021,METRIC GROUP LTD                        ,976.50,Oct-21
EREWASH BOROUGH COUNCIL,4563,Household Waste Collection    ,Bins                          ,27-Aug-2021,MGB PLASTICS LTD                        ,"5,760.00",Oct-21
EREWASH BOROUGH COUNCIL,4562,Household Waste Collection    ,Bins                          ,31-Aug-2021,MGB PLASTICS LTD                        ,"5,760.00",Oct-21
EREWASH BOROUGH COUNCIL,4562,Household Waste Collection    ,Bins                          ,31-Aug-2021,MGB PLASTICS LTD                        ,"3,510.00",Oct-21
EREWASH BOROUGH COUNCIL,4562,Household Waste Collection    ,Bins                          ,31-Aug-2021,MGB PLASTICS LTD                        ,"3,510.00",Oct-21
EREWASH BOROUGH COUNCIL,4562,Household Waste Collection    ,Bins                          ,31-Aug-2021,MGB PLASTICS LTD                        ,350.00,Oct-21
EREWASH BOROUGH COUNCIL,4562,Household Waste Collection    ,Bins                          ,31-Aug-2021,MGB PLASTICS LTD                        ,600.00,Oct-21
EREWASH BOROUGH COUNCIL,4562,Household Waste Collection    ,Bins                          ,31-Aug-2021,MGB PLASTICS LTD                        ,580.00,Oct-21
